bitfinex-derivatives/quotes_SOLF0:USTF0_20250819
["timestamp","ask_amount","ask_price","bid_price","bid_amount"]
[1755562472285,2.9,183.44,183.35,3.06]
[1755562472589,2.9,183.42,183.36,5.4509]
[1755562472785,2.9,183.42,183.35,3.06]
[1755562472992,3.9245508,183.41,183.35,3.06]
[1755562473194,2.9,183.42,183.35,3.06]
[1755562473389,2.9,183.4,183.35,3.06]
[1755562473589,2.9,183.4,183.34,120.24947023]
[1755562473790,2.9,183.4,183.34,123.30947023]
[1755562474397,2.9,183.4,183.35,5.4514]
[1755562474594,2.9,183.4,183.36,3.06]
[1755562474789,2.9,183.39,183.36,3.06]
[1755562475700,2.9,183.38,183.36,3.06]
[1755562476609,2.9,183.44,183.36,3.06]
[1755562476797,3.92621853,183.43,183.36,3.06]
[1755562476997,3.92621853,183.42,183.36,3.06]
[1755562477200,3.92621853,183.41,183.37,5.4507]
[1755562477396,2.9,183.44,183.38,3.06]
[1755562477600,2.9,183.42,183.38,3.06]
[1755562477797,2.9,183.4,183.36,5.451]
[1755562478002,2.9,183.4,183.37,3.06]
[1755562478902,2.9,183.4,183.36,5.451]
[1755562479205,2.9,183.44,183.37,8.5108]
[1755562479397,3.92932526,183.43,183.37,8.5108]
[1755562479592,3.92932526,183.42,183.37,5.4508]
[1755562479798,3.92932526,183.41,183.38,3.06]
[1755562480606,6.82932526,183.41,183.38,3.06]
[1755562480804,3.92932526,183.4,183.38,3.06]
[1755562483707,6.82932526,183.4,183.36,8.511]
[1755562484012,2.9,183.4,183.36,5.451]
[1755562484208,2.9,183.4,183.37,3.06]
[1755562484708,2.9,183.4,183.37,5.4508]
[1755562484908,2.9,183.4,183.37,8.5108]
[1755562485808,2.9,183.4,183.37,5.4508]
[1755562486011,2.9,183.43,183.38,3.06]
[1755562486210,6.83068388,183.42,183.38,3.06]
[1755562486410,3.93068388,183.41,183.39,3.06]
[1755562486709,3.93068388,183.4,183.39,3.06]
[1755562486904,3.93068388,183.4,183.37,5.4508]
[1755562487106,2.9,183.41,183.37,8.5108]
[1755562487308,3.93056445,183.4,183.37,8.5108]
[1755562487506,2.9,183.41,183.38,3.06]
[1755562487703,3.93045088,183.4,183.38,3.06]
[1755562487907,2.9,183.41,183.38,3.06]
[1755562488105,3.93045088,183.4,183.39,3.06]
[1755562488307,136.56,183.44,183.38,5.867551]
[1755562488609,133.66,183.44,183.39,3.06]
[1755562488806,133.66,183.44,183.38,5.867551]
[1755562489211,133.66,183.44,183.42,3.06]
[1755562489410,2.9,183.46,183.42,3.06]
[1755562489710,3.93129448,183.45,183.41,5.867551]
[1755562489916,2.9,183.46,183.41,5.867551]
[1755562489917,2.9,183.46,183.43,3.06]
[1755562490106,3.9314568,183.45,183.43,3.06]
[1755562490302,2.9,183.45,183.41,8.927551]
[1755562490712,2.9,183.45,183.42,3.06]
[1755562491606,2.9,183.45,183.42,8.5093]
[1755562491807,2.9,183.44,183.42,8.5093]
[1755562492211,133.66,183.49,183.42,8.5093]
[1755562492408,6.84092286,183.48,183.42,8.5093]
[1755562492608,2.91,183.46,183.42,8.5093]
[1755562492808,3.93092286,183.45,183.42,8.5093]
[1755562493105,2.91,183.46,183.42,8.5093]
[1755562493301,3.92964607,183.45,183.43,5.4489]
[1755562493516,136.57,183.49,183.44,2.89]
[1755562493714,2.91,183.47,183.44,2.89]
[1755562493912,3.92867465,183.46,183.44,2.89]
[1755562494112,2.91,183.47,183.44,2.89]
[1755562494315,3.92867076,183.46,183.44,2.89]
[1755562494514,2.91,183.45,183.42,2.89]
[1755562495109,2.91,183.45,183.42,8.3392]
[1755562495812,133.66,183.49,183.41,11.317051]
[1755562496015,2.91,183.44,183.41,8.757551]
[1755562497117,2.91,183.47,183.42,2.89]
[1755562497325,6.83907908,183.46,183.43,2.89]
[1755562497619,2.91,183.46,183.43,2.89]
[1755562498616,2.91,183.46,183.43,5.449]
[1755562498820,2.91,183.46,183.44,2.89]
[1755562499412,2.91,183.44,183.38,8.757551]
[1755562499612,3.92255227,183.43,183.38,8.757551]
[1755562499812,2.91,183.44,183.38,8.757551]
[1755562500017,6.83255227,183.43,183.39,2.89]
[1755562500314,137.52239203,183.42,183.33,2.89]
[1755562500514,6.83239203,183.41,183.33,2.89]
[1755562500714,3.92225839,183.4,183.33,2.89]
[1755562500914,2.91,183.38,183.33,2.89]
[1755562501114,2.91,183.41,183.33,2.89]
[1755562501315,3.92209367,183.4,183.35,5.867551]
[1755562501516,2.91,183.41,183.36,5.4509]
[1755562501717,6.83182719,183.4,183.36,5.4509]
[1755562501913,2.91,183.4,183.36,8.3409]
[1755562504221,2.91,183.4,183.37,2.89]
[1755562504627,2.91,183.38,183.35,2.89]
[1755562505022,2.91,183.37,183.33,5.4518]
[1755562505229,2.91,183.37,183.33,2.89]
[1755562507224,2.91,183.36,183.32,8.757551]
[1755562507428,2.91,183.34,183.29,8.757551]
[1755562507633,2.91,183.41,183.26,8.757551]
[1755562507924,2.91,183.38,183.26,2.89]
[1755562508128,2.91,183.36,183.26,2.89]
[1755562508323,2.91,183.34,183.26,2.89]
[1755562508526,3.9201542,183.33,183.26,2.89]
[1755562508829,6.8301542,183.32,183.26,2.89]
[1755562509028,133.6,183.35,183.26,2.89]
[1755562509029,2.91,183.3,183.26,2.89]
[1755562509228,133.6,183.35,183.26,2.89]
[1755562509429,2.91,183.33,183.26,2.89]
[1755562509730,2.91,183.31,183.23,8.757551]
[1755562509929,2.91,183.31,183.22,5.455]
[1755562509930,2.91,183.29,183.19,2.89]
[1755562510124,2.91,183.29,183.19,8.757551]
[1755562510431,2.91,183.29,183.21,5.4554]
[1755562510619,2.91,183.29,183.19,8.757551]
[1755562511227,2.91,183.29,183.2,5.4558]
[1755562512128,2.91,183.29,183.19,14.213751]
[1755562512333,2.91,183.27,183.19,14.213751]
[1755562514832,2.91,183.27,183.19,8.757551]
[1755562515035,2.91,183.27,183.2,2.89]
[1755562516642,2.91,183.27,183.2,8.3457]
[1755562516943,2.91,183.27,183.2,2.89]
[1755562517743,2.91,183.27,183.19,5.867551]
[1755562518033,2.91,183.27,183.19,8.757551]
[1755562518244,2.91,183.31,183.2,2.89]
[1755562518434,2.91,183.29,183.2,2.89]
[1755562519142,2.91,183.27,183.17,2.89]
[1755562519343,2.91,183.26,183.16,5.867551]
[1755562520838,2.91,183.25,183.14,2.89]
[1755562521140,2.91,183.24,183.13,5.867551]
[1755562521343,2.91,183.24,183.13,8.757551]
[1755562523535,2.91,183.24,183.16,8.747551]
[1755562524442,2.91,183.24,183.16,14.204551]
[1755562524642,2.91,183.24,183.16,2.88]
[1755562524841,2.91,183.24,183.13,5.867551]
[1755562525040,2.91,183.24,183.13,2.88]
[1755562526648,2.91,183.24,183.13,8.3379]
[1755562529049,2.91,183.24,183.15,5.867551]
[1755562529249,2.91,183.24,183.16,2.88]
[1755562530448,2.91,183.24,183.15,5.867551]
[1755562530649,2.91,183.24,183.13,8.3379]
[1755562530848,3.14,183.23,183.13,2.88]
[1755562532646,3.14,183.22,183.1,8.3388]
[1755562532848,3.14,183.22,183.1,14.206351]
[1755562535049,3.14,183.22,183.12,2.88]
[1755562536646,16.37,183.22,183.12,2.88]
[1755562536850,3.14,183.2,183.12,2.88]
[1755562537254,3.14,183.19,183.09,2.88]
[1755562537449,3.14,183.17,183.09,2.88]
[1755562538649,16.37,183.22,183.11,2.88]
[1755562538951,133.7,183.22,183.14,2.88]
[1755562539157,3.14,183.21,183.1,2.88]
[1755562539449,3.14,183.19,183.07,2.88]
[1755562539650,3.14,183.17,183.03,2.88]
[1755562539857,19.51,183.14,183.03,2.88]
[1755562540053,133.72,183.13,183.03,2.88]
[1755562540654,3.14,183.12,183.03,2.88]
[1755562543355,3.14,183.12,182.93,367.73065084]
[1755562543356,3.14,183.1,183.0,2.88]
[1755562543658,3.14,183.08,183.0,2.88]
[1755562543859,19.51,183.11,183.0,2.88]
[1755562544055,3.87496921,183.1,183.0,2.88]
[1755562544254,19.51,183.11,183.0,2.88]
[1755562544556,3.14,183.09,183.0,2.88]
[1755562545356,3.87666863,183.08,183.0,2.88]
[1755562545551,3.14,183.09,183.0,2.88]
[1755562545755,3.87665683,183.08,183.0,2.88]
[1755562545956,3.14,183.07,183.0,2.88]
[1755562546850,3.14,183.11,183.0,2.88]
[1755562547055,3.87819398,183.1,183.0,2.88]
[1755562547263,3.14,183.11,183.0,2.88]
[1755562547665,3.14,183.11,183.04,2.88]
[1755562547856,3.14,183.11,183.04,2.92074876]
[1755562548163,3.87970455,183.1,183.04,2.92074876]
[1755562548465,3.14,183.08,183.04,2.92074876]
[1755562548760,3.14,183.07,183.04,0.04074876]
[1755562548960,3.14,183.06,183.04,0.04074876]
[1755562549156,155.957551,183.13,183.04,0.04074876]
[1755562549366,19.51,183.1,183.04,0.04074876]
[1755562549553,3.14,183.08,183.04,0.04074876]
[1755562549753,7.02124926,183.07,183.04,0.04074876]
[1755562549965,3.88124926,183.06,183.04,0.04074876]
[1755562551060,3.14,183.11,183.05,2.88]
[1755562551358,7.02600214,183.1,183.04,2.92074876]
[1755562551559,3.88600214,183.09,183.04,0.04074876]
[1755562551757,3.88600214,183.09,183.05,2.88]
[1755562551959,3.88600214,183.09,183.06,2.88]
[1755562552458,3.88600214,183.09,183.05,3.11]
[1755562552666,150.09,183.13,183.06,3.11]
[1755562552960,3.89206694,183.12,183.06,3.11]
[1755562553166,3.89206694,183.11,183.06,3.11]
[1755562553362,3.89206694,183.1,183.07,3.11]
[1755562554463,7.04206694,183.1,183.03,5.4608]
[1755562554661,3.89206694,183.09,183.05,3.11]
[1755562554966,3.15,183.09,183.05,3.11]
[1755562555163,7.04454179,183.08,183.02,11.328651]
[1755562555369,3.15,183.08,183.02,11.328651]
[1755562555667,3.15,183.08,183.02,5.867551]
[1755562556465,3.15,183.08,183.02,11.328751]
[1755562556662,3.15,183.11,183.03,3.11]
[1755562556864,3.89781235,183.1,183.03,3.11]
[1755562557064,3.89781235,183.09,183.03,3.11]
[1755562557364,3.15,183.11,183.04,5.4606]
[1755562557570,3.89877205,183.1,183.04,5.4606]
[1755562557773,3.89877205,183.09,183.05,3.11]
[1755562558069,3.15,183.11,183.05,3.11]
[1755562558268,7.04877205,183.1,183.06,3.11]
[1755562558570,3.89877205,183.09,183.06,3.11]
[1755562559471,3.15,183.1,183.06,3.11]
[1755562559767,3.15,183.1,183.02,5.867551]
[1755562559967,136.87,183.13,183.05,3.11]
[1755562560158,136.87,183.13,183.05,8.977551]
[1755562560361,136.87,183.13,183.06,3.11]
[1755562561665,133.72,183.13,183.06,3.11]
[1755562562067,133.72,183.13,183.09,5.459]
[1755562562376,133.72,183.13,183.1,3.11]
[1755562562870,133.72,183.13,183.11,3.11]
[1755562564869,3.15,183.12,183.08,8.977551]
[1755562565066,3.15,183.12,183.08,3.11]
[1755562565775,3.15,183.12,183.09,3.11]
[1755562565962,133.72,183.13,183.09,3.11]
[1755562566276,133.72,183.13,183.1,3.11]
[1755562566668,136.87,183.13,183.1,3.11]
[1755562567370,133.72,183.13,183.11,3.11]
[1755562568976,3.15,183.19,183.12,3.11]
[1755562569270,3.15,183.22,183.12,3.11]
[1755562569466,3.81152939,183.21,183.12,3.11]
[1755562569662,3.15,183.22,183.15,5.4573]
[1755562569663,3.81152939,183.2,183.15,5.4573]
[1755562569863,3.15,183.22,183.14,3.11]
[1755562570069,3.81153883,183.21,183.14,3.11]
[1755562570377,3.81153883,183.2,183.14,3.11]
[1755562570572,3.15,183.22,183.14,3.11]
[1755562570876,3.81193835,183.21,183.14,3.11]
[1755562571078,3.81193835,183.2,183.11,5.867551]
[1755562571278,137.05,183.23,183.17,3.11]
[1755562571480,137.05,183.23,183.18,5.4565]
[1755562571682,3.15,183.22,183.18,8.5665]
[1755562572181,133.9,183.23,183.2,3.11]
[1755562572372,133.9,183.23,183.21,3.11]
[1755562572572,369.89,183.25,183.21,3.11]
[1755562573171,369.89,183.25,183.17,5.867551]
[1755562573172,366.74,183.25,183.18,3.11]
[1755562573376,137.09,183.28,183.18,3.11]
[1755562573979,3.81177819,183.27,183.2,5.4558]
[1755562574178,3.15,183.26,183.18,3.11]
[1755562574376,3.15,183.26,183.19,5.4559]
[1755562574683,3.15,183.26,183.18,3.11]
[1755562574884,3.15,183.26,183.2,5.4556]
[1755562575278,3.15,183.26,183.18,3.11]
[1755562575482,133.94,183.28,183.24,5.867551]
[1755562575782,3.15,183.33,183.27,3.11]
[1755562575983,3.15,183.33,183.28,5.4534]
[1755562576185,3.15,183.33,183.29,3.11]
[1755562577384,3.15,183.33,183.28,5.867551]
[1755562577872,3.15,183.32,183.28,5.867551]
[1755562578184,3.15,183.31,183.28,5.867551]
[1755562579381,133.96,183.34,183.28,8.977551]
[1755562580882,133.96,183.34,183.28,5.867551]
[1755562581188,133.96,183.34,183.31,5.867551]
[1755562581387,3.15,183.37,183.31,8.977551]
[1755562582686,3.15,183.37,183.28,5.867551]
[1755562583288,3.15,183.37,183.29,3.12]
[1755562584889,134.26,183.38,183.29,3.12]
[1755562585289,134.26,183.38,183.32,5.4523]
[1755562585494,134.26,183.38,183.32,8.5723]
[1755562585690,134.26,183.38,183.32,3.12]
[1755562585896,137.41,183.38,183.32,3.12]
[1755562587099,137.41,183.38,183.32,8.5721]
[1755562587397,137.41,183.38,183.32,3.12]
[1755562590099,134.26,183.38,183.32,3.12]
[1755562590600,134.26,183.38,183.34,5.4517]
[1755562590804,134.26,183.38,183.35,3.12]
[1755562591310,3.15,183.37,183.33,5.4519]
[1755562591516,134.26,183.38,183.35,3.12]
[1755562592198,134.26,183.38,183.32,3.12]
[1755562592395,3.15,183.4,183.32,3.12]
[1755562593105,3.15,183.4,183.34,5.4517]
[1755562593408,3.15,183.4,183.32,3.12]
[1755562594607,3.15,183.4,183.29,8.5731]
[1755562594809,3.15,183.4,183.29,3.12]
[1755562595904,3.15,183.39,183.29,3.12]
[1755562597108,3.15,183.39,183.29,8.5732]
[1755562597311,3.15,183.39,183.29,3.12]
[1755562597509,3.15,183.39,183.29,8.5731]
[1755562597710,3.15,183.39,183.29,3.12]
[1755562598216,3.15,183.38,183.26,3.12]
[1755562598507,5.867551,183.38,183.26,3.12]
[1755562598712,3.15,183.36,183.26,3.12]
[1755562598908,3.15,183.34,183.26,3.12]
[1755562601609,3.15,183.34,183.22,5.867551]
[1755562601810,3.15,183.34,183.23,3.12]
[1755562602207,3.15,183.34,183.24,5.4545]
[1755562602414,3.15,183.34,183.22,5.867551]
[1755562602415,3.15,183.34,183.25,3.12]
[1755562603316,3.15,183.34,183.25,8.5741]
[1755562605515,3.15,183.34,183.25,3.12]
[1755562606418,3.79184207,183.33,183.25,3.12]
[1755562606618,3.15,183.34,183.25,3.12]
[1755562606823,3.15,183.32,183.25,3.12]
[1755562607021,3.15,183.32,183.22,8.987551]
[1755562607216,3.15,183.32,183.22,3.12]
[1755562608115,3.15,183.32,183.22,8.5753]
[1755562608312,3.79533939,183.31,183.22,8.5753]
[1755562608514,3.15,183.32,183.22,8.5753]
[1755562608714,3.7953393,183.31,183.22,8.5753]
[1755562608915,3.15,183.3,183.22,3.12]
[1755562609517,3.15,183.33,183.23,3.12]
[1755562609714,3.79760086,183.32,183.23,3.12]
[1755562609916,3.15,183.33,183.23,3.12]
[1755562610214,3.797771,183.32,183.23,3.12]
[1755562610411,3.15,183.33,183.23,3.12]
[1755562610614,3.80068209,183.32,183.23,3.12]
[1755562610813,3.15,183.33,183.23,3.12]
[1755562611016,3.15,183.31,183.23,3.12]
[1755562611219,3.80361234,183.3,183.23,3.12]
[1755562611416,3.15,183.31,183.23,3.12]
[1755562611619,3.80361385,183.3,183.23,3.12]
[1755562611815,3.15,183.31,183.23,3.12]
[1755562612020,3.80361385,183.3,183.23,3.12]
[1755562612226,3.15,183.31,183.23,3.12]
[1755562612431,3.80701564,183.3,183.23,8.5748]
[1755562612629,3.15,183.31,183.23,8.5748]
[1755562612821,3.8070163,183.3,183.23,8.5748]
[1755562613017,3.14,183.34,183.24,2.92]
[1755562613225,3.80716972,183.33,183.24,2.92]
[1755562613419,3.80716972,183.32,183.26,2.92]
[1755562613619,134.0,183.35,183.28,2.92]
[1755562613929,3.81166863,183.34,183.28,5.867551]
[1755562614131,134.0,183.35,183.3,5.4527]
[1755562614330,3.81423028,183.34,183.32,2.92]
[1755562614629,134.0,183.35,183.32,2.92]
[1755562614831,3.81414623,183.34,183.32,2.92]
[1755562615125,134.0,183.35,183.29,5.4531]
[1755562615433,3.81696008,183.34,183.31,2.92]
[1755562615627,134.0,183.35,183.31,2.92]
[1755562615828,3.81695672,183.34,183.31,2.92]
[1755562616133,134.0,183.35,183.32,2.92]
[1755562617226,3.14,183.38,183.33,2.92]
[1755562617431,3.82251279,183.37,183.31,5.867551]
[1755562617629,3.82251279,183.36,183.31,5.867551]
[1755562617931,3.14,183.39,183.33,8.3718]
[1755562618126,3.82299306,183.38,183.34,2.92]
[1755562618329,3.14,183.39,183.34,2.92]
[1755562618632,3.82381076,183.38,183.34,2.92]
[1755562618835,3.82381076,183.37,183.34,2.92]
[1755562619127,133.92,183.42,183.34,2.92]
[1755562619333,6.9642888,183.41,183.34,2.92]
[1755562619530,3.8242888,183.4,183.34,2.92]
[1755562619728,6.9642888,183.39,183.34,2.92]
[1755562619929,3.8242888,183.38,183.34,2.92]
[1755562620130,3.8242888,183.37,183.34,2.92]
[1755562620330,3.14,183.37,183.32,8.3722]
[1755562620633,3.14,183.36,183.32,8.3722]
[1755562620830,3.14,183.36,183.33,2.92]
[1755562621029,3.14,183.41,183.33,2.92]
[1755562621331,3.82536537,183.4,183.33,2.92]
[1755562621533,3.82536537,183.39,183.33,2.92]
[1755562621728,6.96536537,183.38,183.33,2.92]
[1755562621929,3.82536537,183.37,183.33,5.452]
[1755562622130,3.14,183.38,183.34,2.92]
[1755562622531,3.14,183.41,183.35,2.92]
[1755562622730,3.82274093,183.4,183.31,5.867551]
[1755562622931,3.82274093,183.39,183.38,2.92]
[1755562623132,133.92,183.42,183.39,2.92]
[1755562623332,3.82289101,183.41,183.39,2.92]
[1755562623533,137.06,183.42,183.39,2.92]
[1755562623734,3.82126908,183.41,183.35,2.92]
[1755562623923,137.06,183.42,183.35,2.92]
[1755562624129,3.82126992,183.41,183.35,2.92]
[1755562624325,3.82052839,183.4,183.35,2.92]
[1755562624531,3.14,183.4,183.35,2.92]
[1755562624731,3.14,183.41,183.35,2.92]
[1755562624929,6.96052875,183.4,183.35,2.92]
[1755562625127,3.14,183.4,183.35,2.92]
[1755562625426,3.14,183.39,183.35,2.92]
[1755562626131,133.92,183.42,183.35,2.92]
[1755562626132,3.14,183.38,183.35,2.92]
[1755562626335,137.06,183.42,183.35,2.92]
[1755562626536,3.81952758,183.41,183.35,2.92]
[1755562626733,137.06,183.42,183.35,8.3712]
[1755562627034,3.8204464,183.41,183.35,2.92]
[1755562627232,137.06,183.42,183.35,2.92]
[1755562627436,133.92,183.42,183.35,2.92]
[1755562627829,133.92,183.42,183.36,5.451]
[1755562628037,133.92,183.42,183.34,5.867551]
[1755562628232,133.92,183.42,183.38,2.92]
[1755562629239,137.06,183.42,183.38,2.92]
[1755562632239,137.06,183.42,183.38,8.3705]
[1755562632840,137.06,183.42,183.39,8.3702]
[1755562633043,133.92,183.42,183.39,8.3702]
[1755562634645,3.14,183.45,183.42,2.92]
[1755562635840,3.14,183.45,183.39,2.92]
[1755562636238,3.14,183.45,183.41,5.4494]
[1755562636440,3.14,183.45,183.42,2.92]
[1755562636840,133.7,183.46,183.41,5.4494]
[1755562637045,136.84,183.46,183.4,5.4499]
[1755562638245,136.84,183.46,183.39,2.92]
[1755562638842,3.14,183.45,183.39,2.92]
[1755562639247,133.7,183.46,183.4,5.4497]
[1755562639447,3.14,183.45,183.41,2.92]
[1755562639645,133.7,183.46,183.4,5.867551]
[1755562639848,133.7,183.46,183.43,2.92]
[1755562640253,136.84,183.46,183.43,2.92]
[1755562640548,136.76,183.54,183.44,5.867551]
[1755562640755,3.14,183.53,183.44,11.316151]
[1755562643059,3.14,183.53,183.44,5.867551]
[1755562643851,3.80915418,183.52,183.38,5.867551]
[1755562644056,2.9,183.5,183.41,5.4496]
[1755562644757,2.9,183.5,183.4,5.4499]
[1755562646258,19.27,183.5,183.39,8.5402]
[1755562646459,2.9,183.48,183.38,5.867551]
[1755562646648,2.9,183.47,183.37,3.09]
[1755562647053,2.9,183.47,183.38,5.4504]
[1755562647860,2.9,183.47,183.37,8.5408]
[1755562648861,19.27,183.47,183.37,3.09]
[1755562649161,6.70930529,183.46,183.37,3.09]
[1755562649359,2.9,183.45,183.34,3.09]
[1755562649552,2.9,183.44,183.34,3.09]
[1755562651058,2.9,183.42,183.31,3.09]
[1755562651462,2.9,183.42,183.32,5.4523]
[1755562652760,2.9,183.42,183.31,3.09]
[1755562653066,2.9,183.4,183.31,3.09]
[1755562653354,2.9,183.39,183.31,3.09]
[1755562653560,2.9,183.39,183.28,5.867551]
[1755562653561,2.9,183.37,183.28,3.09]
[1755562655160,133.6,183.4,183.28,3.09]
[1755562655161,3.81553502,183.36,183.28,3.09]
[1755562655359,2.9,183.35,183.28,3.09]
[1755562656363,2.9,183.35,183.28,8.5433]
[1755562656760,2.9,183.35,183.28,3.09]
[1755562657666,2.9,183.35,183.28,8.5435]
[1755562660063,2.9,183.35,183.29,5.4532]
[1755562660362,2.9,183.38,183.31,8.957551]
[1755562660568,133.6,183.4,183.32,3.09]
[1755562660760,3.8202151,183.39,183.32,3.09]
[1755562660963,133.6,183.4,183.32,3.09]
[1755562661160,3.82021464,183.39,183.32,3.09]
[1755562661364,133.6,183.4,183.33,5.4518]
[1755562661566,3.82054301,183.39,183.34,3.09]
[1755562661757,2.9,183.41,183.38,3.09]
[1755562662068,369.3,183.43,183.38,3.09]
[1755562662366,369.3,183.43,183.34,5.867551]
[1755562662367,369.3,183.43,183.39,3.09]
[1755562663159,2.9,183.47,183.4,3.09]
[1755562663355,3.82224169,183.46,183.4,3.09]
[1755562663564,6.72224169,183.45,183.4,3.09]
[1755562663761,2.9,183.45,183.41,3.09]
[1755562663965,133.68,183.48,183.41,3.09]
[1755562664166,6.7235126,183.47,183.41,3.09]
[1755562664368,6.7235126,183.46,183.42,3.09]
[1755562664665,3.8235126,183.45,183.42,3.09]
[1755562665067,2.9,183.46,183.42,3.09]
[1755562665565,136.58,183.48,183.42,3.09]
[1755562668270,136.58,183.48,183.42,8.5391]
[1755562668669,136.58,183.48,183.4,5.867551]
[1755562668865,2.9,183.47,183.37,5.867551]
[1755562669468,2.9,183.47,183.38,5.4505]
[1755562670065,2.9,183.47,183.39,3.09]
[1755562670265,2.9,183.47,183.39,8.5402]
[1755562670665,2.9,183.47,183.38,5.4506]
[1755562670867,2.9,183.47,183.37,5.867551]
[1755562671068,3.8237396,183.46,183.37,5.867551]
[1755562671269,2.9,183.45,183.37,11.318351]
[1755562671974,2.9,183.45,183.38,5.4505]
[1755562672375,2.9,183.45,183.37,5.867551]
[1755562672972,2.9,183.45,183.39,8.3402]
[1755562677673,2.9,183.45,183.39,2.89]
[1755562677973,2.9,183.45,183.35,2.89]
[1755562679173,133.68,183.48,183.35,2.89]
[1755562679174,3.82545786,183.44,183.35,2.89]
[1755562679374,3.1,183.42,183.35,2.89]
[1755562679562,3.1,183.42,183.35,8.3414]
[1755562679767,3.1,183.42,183.35,2.89]
[1755562682675,3.1,183.42,183.33,5.452]
[1755562683175,3.1,183.42,183.34,5.4517]
[1755562683380,3.1,183.42,183.34,8.3417]
[1755562684681,3.1,183.42,183.34,2.89]
[1755562684881,3.1,183.4,183.31,8.757551]
[1755562685985,3.1,183.4,183.31,14.210151]
[1755562686482,3.1,183.4,183.32,5.4523]
[1755562686978,3.1,183.4,183.33,5.452]
[1755562687476,3.1,183.4,183.32,2.89]
[1755562688681,3.82816118,183.39,183.32,2.89]
[1755562688883,3.82768616,183.38,183.29,2.89]
[1755562689180,6.92768616,183.37,183.29,2.89]
[1755562689478,3.1,183.37,183.29,2.89]
[1755562690583,3.1,183.37,183.29,8.3432]
[1755562691784,3.1,183.37,183.29,2.89]
[1755562691986,3.1,183.35,183.29,2.89]
[1755562693483,3.1,183.35,183.25,5.867551]
[1755562693484,3.1,183.35,183.26,2.89]
[1755562693687,3.82985806,183.34,183.26,2.89]
[1755562693884,6.92985806,183.33,183.26,2.89]
[1755562694195,3.82985806,183.32,183.26,2.89]
[1755562694486,3.1,183.29,183.26,2.89]
[1755562695489,3.1,183.28,183.22,14.212751]
[1755562695785,3.1,183.28,183.22,8.757551]
[1755562695982,3.1,183.28,183.22,2.89]
[1755562697686,3.1,183.28,183.19,5.867551]
[1755562697687,3.1,183.28,183.19,8.757551]
[1755562697889,3.1,183.28,183.19,2.89]
[1755562698389,3.1,183.28,183.19,8.3462]